[Event "Betsys MČR v online bleskovém šachu 2021"]
[Site "Chess.com"]
[Date "2021.04.17"]
[Round "3"]
[White "androidddd"]
[Black "hvanacek"]
[Result "1-0"]
[WhiteElo "1411"]
[BlackElo "955"]
[TimeControl "180+1"]
[EndTime "9:26:45 PDT"]
[Termination "Uživatel androidddd zvítězil matem"]

1. e4 {[%clk 0:02:57.8]} 1... e5 {[%clk 0:02:59]} 2. Nf3 {[%clk 0:02:57.2]} 2...
Nf6 {[%clk 0:02:57.4]} 3. Nxe5 {[%clk 0:02:48.7]} 3... Qe7 {[%clk 0:02:53.4]} 4.
d4 {[%clk 0:02:38.1]} 4... d6 {[%clk 0:02:49.3]} 5. Nf3 {[%clk 0:02:34.8]} 5...
Bg4 {[%clk 0:02:43]} 6. Be2 {[%clk 0:02:32.6]} 6... Nc6 {[%clk 0:02:38.3]} 7.
Nc3 {[%clk 0:02:27.9]} 7... O-O-O {[%clk 0:02:32.3]} 8. h3 {[%clk 0:02:26]} 8...
Bxf3 {[%clk 0:02:28.8]} 9. Bxf3 {[%clk 0:02:25.7]} 9... d5 {[%clk 0:02:13.7]}
10. e5 {[%clk 0:02:23.5]} 10... Ne4 {[%clk 0:02:10.6]} 11. O-O {[%clk
0:02:05.7]} 11... Nxc3 {[%clk 0:02:08.3]} 12. bxc3 {[%clk 0:02:03.9]} 12... h6
{[%clk 0:01:51.7]} 13. Rb1 {[%clk 0:01:59]} 13... b6 {[%clk 0:01:50]} 14. Qe2
{[%clk 0:01:56.5]} 14... a5 {[%clk 0:01:38]} 15. Qa6+ {[%clk 0:01:51.9]} 15...
Kb8 {[%clk 0:01:36.4]} 16. Be2 {[%clk 0:01:51.3]} 16... g5 {[%clk 0:01:09.3]}
17. Bb5 {[%clk 0:01:38.2]} 17... Qe6 {[%clk 0:01:02.1]} 18. Bxc6 {[%clk
0:01:24.8]} 18... Qxc6 {[%clk 0:00:58.1]} 19. Qxa5 {[%clk 0:01:20.5]} 19... Qb7
{[%clk 0:00:48.9]} 20. Qb5 {[%clk 0:01:11.8]} 20... Rc8 {[%clk 0:00:37.7]} 21.
Rb3 {[%clk 0:01:05]} 21... Rd8 {[%clk 0:00:36]} 22. Ba3 {[%clk 0:01:02.6]} 22...
Bxa3 {[%clk 0:00:33.1]} 23. Rxa3 {[%clk 0:01:01]} 23... Rc8 {[%clk 0:00:33.7]}
24. Rb1 {[%clk 0:00:56.3]} 24... Rcd8 {[%clk 0:00:32.3]} 25. Ra4 {[%clk
0:00:53.8]} 25... Rc8 {[%clk 0:00:30.8]} 26. Rb3 {[%clk 0:00:50.2]} 26... Rhd8
{[%clk 0:00:24.6]} 27. Rba3 {[%clk 0:00:47.2]} 27... Re8 {[%clk 0:00:18.7]} 28.
Ra6 {[%clk 0:00:26.8]} 28... Red8 {[%clk 0:00:18.8]} 29. Qa4 {[%clk 0:00:25.3]}
29... Qxa6 {[%clk 0:00:16.2]} 30. Qxa6 {[%clk 0:00:23.9]} 30... Rd6 {[%clk
0:00:09.8]} 31. Qa7# {[%clk 0:00:21.8]} 1-0

[Event "Betsys MČR v online bleskovém šachu 2021"]
[Site "Chess.com"]
[Date "2021.04.17"]
[Round "3"]
[White "martin1804"]
[Black "Dasty78"]
[Result "1-0"]
[WhiteElo "2289"]
[BlackElo "2014"]
[TimeControl "180+1"]
[EndTime "9:26:46 PDT"]
[Termination "Uživatel martin1804 zvítězil na čas"]

1. d4 {[%clk 0:02:56.2]} 1... Nf6 {[%clk 0:02:58.2]} 2. Nf3 {[%clk 0:02:53.6]}
2... c5 {[%clk 0:02:57.8]} 3. d5 {[%clk 0:02:44.3]} 3... g6 {[%clk 0:02:56.3]}
4. c4 {[%clk 0:02:27.3]} 4... e6 {[%clk 0:02:53.5]} 5. Nc3 {[%clk 0:02:26.1]}
5... exd5 {[%clk 0:02:53.3]} 6. cxd5 {[%clk 0:02:27]} 6... d6 {[%clk 0:02:53.5]}
7. e4 {[%clk 0:02:16.7]} 7... Bg7 {[%clk 0:02:53.1]} 8. Bb5+ {[%clk 0:02:15.8]}
8... Bd7 {[%clk 0:02:51.2]} 9. Be2 {[%clk 0:02:07.7]} 9... a6 {[%clk 0:02:14]}
10. Bf4 {[%clk 0:01:59.5]} 10... Qc7 {[%clk 0:02:13.6]} 11. e5 {[%clk
0:01:55.3]} 11... dxe5 {[%clk 0:01:46.5]} 12. Nxe5 {[%clk 0:01:24.5]} 12... Qa5
{[%clk 0:01:44.7]} 13. O-O {[%clk 0:01:19]} 13... O-O {[%clk 0:01:43.8]} 14. Nc4
{[%clk 0:01:14.4]} 14... Qd8 {[%clk 0:01:35.5]} 15. a4 {[%clk 0:01:10.7]} 15...
Bf5 {[%clk 0:01:06]} 16. Bf3 {[%clk 0:00:58.5]} 16... Re8 {[%clk 0:00:56.5]} 17.
Nd6 {[%clk 0:00:57.2]} 17... Re7 {[%clk 0:00:52.2]} 18. Nxf5 {[%clk 0:00:52.9]}
18... gxf5 {[%clk 0:00:52]} 19. d6 {[%clk 0:00:52.5]} 19... Rd7 {[%clk 0:00:52]}
20. Nd5 {[%clk 0:00:41.9]} 20... Nxd5 {[%clk 0:00:37.7]} 21. Qxd5 {[%clk
0:00:42.8]} 21... Nc6 {[%clk 0:00:37.1]} 22. Qxf5 {[%clk 0:00:28.3]} 22... Nd4
{[%clk 0:00:36.1]} 23. Qd5 {[%clk 0:00:26.3]} 23... Nxf3+ {[%clk 0:00:34.8]} 24.
Qxf3 {[%clk 0:00:27.2]} 24... Bxb2 {[%clk 0:00:31.4]} 25. Rab1 {[%clk
0:00:26.5]} 25... Bd4 {[%clk 0:00:29.9]} 26. Rxb7 {[%clk 0:00:25.8]} 26... Rxb7
{[%clk 0:00:26.5]} 27. Qxb7 {[%clk 0:00:26.7]} 27... Rb8 {[%clk 0:00:23.7]} 28.
Qxa6 {[%clk 0:00:24.2]} 1-0

[Event "Betsys MČR v online bleskovém šachu 2021"]
[Site "Chess.com"]
[Date "2021.04.17"]
[Round "3"]
[White "matykov"]
[Black "honzasoucek"]
[Result "1-0"]
[WhiteElo "2001"]
[BlackElo "1634"]
[TimeControl "180+1"]
[EndTime "9:26:48 PDT"]
[Termination "Uživatel matykov zvítězil na čas"]

1. e4 {[%clk 0:03:00.9]} 1... c5 {[%clk 0:02:59]} 2. Nf3 {[%clk 0:03:00.8]} 2...
Nc6 {[%clk 0:02:59.3]} 3. d4 {[%clk 0:03:01.1]} 3... cxd4 {[%clk 0:02:58.7]} 4.
Nxd4 {[%clk 0:03:02]} 4... e6 {[%clk 0:02:58.6]} 5. c4 {[%clk 0:02:59.6]} 5...
Nf6 {[%clk 0:02:56.2]} 6. Nc3 {[%clk 0:02:59.5]} 6... Bb4 {[%clk 0:02:56.6]} 7.
f3 {[%clk 0:02:49.5]} 7... O-O {[%clk 0:02:49.5]} 8. Be3 {[%clk 0:02:42]} 8...
a6 {[%clk 0:02:45.6]} 9. Qd2 {[%clk 0:02:29]} 9... Qc7 {[%clk 0:02:41.4]} 10. a3
{[%clk 0:02:26.9]} 10... Be7 {[%clk 0:02:38.7]} 11. g4 {[%clk 0:02:10.1]} 11...
d6 {[%clk 0:02:31.4]} 12. g5 {[%clk 0:01:55.6]} 12... Nd7 {[%clk 0:02:31]} 13.
f4 {[%clk 0:01:55.8]} 13... Na5 {[%clk 0:02:27.5]} 14. Qe2 {[%clk 0:01:29.5]}
14... b6 {[%clk 0:02:15.1]} 15. h4 {[%clk 0:01:26.3]} 15... Bb7 {[%clk
0:02:14.7]} 16. Bg2 {[%clk 0:01:22.2]} 16... Nxc4 {[%clk 0:02:04.9]} 17. Rc1
{[%clk 0:00:53.7]} 17... Nxe3 {[%clk 0:01:45.9]} 18. Qxe3 {[%clk 0:00:54.6]}
18... Rac8 {[%clk 0:01:43.2]} 19. h5 {[%clk 0:00:45.7]} 19... d5 {[%clk
0:00:41.6]} 20. h6 {[%clk 0:00:34.3]} 20... g6 {[%clk 0:00:30.7]} 21. Nce2
{[%clk 0:00:30]} 21... Qb8 {[%clk 0:00:22.8]} 22. Rxc8 {[%clk 0:00:23.5]} 22...
Rxc8 {[%clk 0:00:23.2]} 23. exd5 {[%clk 0:00:21.8]} 23... Bxd5 {[%clk
0:00:12.1]} 24. Bxd5 {[%clk 0:00:21.1]} 24... exd5 {[%clk 0:00:12.4]} 25. Qxe7
{[%clk 0:00:21.1]} 25... Qc7 {[%clk 0:00:04.5]} 26. Ne6 {[%clk 0:00:16.3]} 1-0

[Event "Betsys MČR v online bleskovém šachu 2021"]
[Site "Chess.com"]
[Date "2021.04.17"]
[Round "3"]
[White "Rozmetal"]
[Black "Krvelacny_krecek"]
[Result "0-1"]
[WhiteElo "2115"]
[BlackElo "2385"]
[TimeControl "180+1"]
[EndTime "9:26:49 PDT"]
[Termination "Uživatel Krvelacny_krecek zvítězil na čas"]

1. e4 {[%clk 0:03:00.9]} 1... e5 {[%clk 0:02:58.5]} 2. Nf3 {[%clk 0:03:00]} 2...
Nc6 {[%clk 0:02:57.7]} 3. Bb5 {[%clk 0:02:57.8]} 3... a6 {[%clk 0:02:57.1]} 4.
Ba4 {[%clk 0:02:57.2]} 4... Nge7 {[%clk 0:02:56.6]} 5. O-O {[%clk 0:02:55.4]}
5... g6 {[%clk 0:02:55.8]} 6. c3 {[%clk 0:02:53.8]} 6... Bg7 {[%clk 0:02:55.8]}
7. d4 {[%clk 0:02:38.3]} 7... exd4 {[%clk 0:02:55.8]} 8. cxd4 {[%clk 0:02:37.8]}
8... O-O {[%clk 0:02:55.6]} 9. Nc3 {[%clk 0:02:36.5]} 9... b5 {[%clk 0:02:55.6]}
10. Bb3 {[%clk 0:02:32.1]} 10... Na5 {[%clk 0:02:55.3]} 11. Bc2 {[%clk
0:02:31.3]} 11... d6 {[%clk 0:02:55]} 12. h3 {[%clk 0:02:29.8]} 12... c5 {[%clk
0:02:52.1]} 13. Bg5 {[%clk 0:02:23]} 13... h6 {[%clk 0:02:48.6]} 14. Bh4 {[%clk
0:02:17.9]} 14... g5 {[%clk 0:02:37.4]} 15. Bg3 {[%clk 0:02:17.5]} 15... Nc4
{[%clk 0:02:37.4]} 16. b3 {[%clk 0:02:14.3]} 16... Na3 {[%clk 0:02:37.2]} 17.
Rc1 {[%clk 0:02:02.8]} 17... f5 {[%clk 0:02:24.9]} 18. exf5 {[%clk 0:01:59.8]}
18... Nxc2 {[%clk 0:02:16.5]} 19. Rxc2 {[%clk 0:01:54.5]} 19... Bxf5 {[%clk
0:02:14.3]} 20. Rd2 {[%clk 0:01:48.4]} 20... d5 {[%clk 0:01:34.4]} 21. Be5
{[%clk 0:01:23.2]} 21... c4 {[%clk 0:01:31.1]} 22. bxc4 {[%clk 0:01:17.5]} 22...
dxc4 {[%clk 0:01:18.7]} 23. Bxg7 {[%clk 0:01:11.5]} 23... Kxg7 {[%clk
0:01:18.4]} 24. Ne5 {[%clk 0:01:09.5]} 24... Ng6 {[%clk 0:01:14.4]} 25. Re1
{[%clk 0:01:04.2]} 25... b4 {[%clk 0:01:03.9]} 26. Ne4 {[%clk 0:00:57.3]} 26...
c3 {[%clk 0:01:02.7]} 27. Rd3 {[%clk 0:00:56.6]} 27... Qb6 {[%clk 0:00:55.9]}
28. Nc5 {[%clk 0:00:41.8]} 28... Bxd3 {[%clk 0:00:50.7]} 29. Qxd3 {[%clk
0:00:39.3]} 29... Nxe5 {[%clk 0:00:50.4]} 30. Rxe5 {[%clk 0:00:38.3]} 30... Rae8
{[%clk 0:00:38.1]} 31. Rd5 {[%clk 0:00:20.5]} 31... Qg6 {[%clk 0:00:36.9]} 32.
Qc4 {[%clk 0:00:09.5]} 32... Rf7 {[%clk 0:00:31.8]} 0-1

[Event "Betsys MČR v online bleskovém šachu 2021"]
[Site "Chess.com"]
[Date "2021.04.17"]
[Round "3"]
[White "pohoda1966"]
[Black "jsulc"]
[Result "0-1"]
[WhiteElo "1718"]
[BlackElo "2080"]
[TimeControl "180+1"]
[EndTime "9:26:49 PDT"]
[Termination "Uživatel jsulc zvítězil po vzdání soupeře"]

1. e4 {[%clk 0:03:00]} 1... e5 {[%clk 0:02:59.9]} 2. Nf3 {[%clk 0:02:59.1]} 2...
Nc6 {[%clk 0:03:00.3]} 3. Bb5 {[%clk 0:02:58.5]} 3... Bc5 {[%clk 0:02:59.4]} 4.
d3 {[%clk 0:02:57.1]} 4... Nge7 {[%clk 0:02:58.2]} 5. O-O {[%clk 0:02:56.6]}
5... O-O {[%clk 0:02:58.1]} 6. c3 {[%clk 0:02:56]} 6... Bb6 {[%clk 0:02:57.7]}
7. Bg5 {[%clk 0:02:50]} 7... d6 {[%clk 0:02:56.1]} 8. h3 {[%clk 0:02:49]} 8...
f6 {[%clk 0:02:52]} 9. Be3 {[%clk 0:02:45.4]} 9... f5 {[%clk 0:02:50.9]} 10.
Bxb6 {[%clk 0:02:44.4]} 10... axb6 {[%clk 0:02:51.8]} 11. a3 {[%clk 0:02:39.8]}
11... Ng6 {[%clk 0:02:39.3]} 12. Nbd2 {[%clk 0:02:29.4]} 12... Nf4 {[%clk
0:02:36.6]} 13. exf5 {[%clk 0:02:26.1]} 13... Bxf5 {[%clk 0:02:35.6]} 14. Ne4
{[%clk 0:02:25.4]} 14... Bg6 {[%clk 0:02:27.4]} 15. Kh2 {[%clk 0:02:15.2]} 15...
Ne7 {[%clk 0:02:18]} 16. g3 {[%clk 0:02:10.5]} 16... Ne6 {[%clk 0:01:59.5]} 17.
Nh4 {[%clk 0:01:57.4]} 17... d5 {[%clk 0:01:45.6]} 18. Nxg6 {[%clk 0:01:52.9]}
18... Nxg6 {[%clk 0:01:46.5]} 19. Nd2 {[%clk 0:01:47]} 19... c6 {[%clk
0:01:41.9]} 20. Ba4 {[%clk 0:01:44]} 20... Qd7 {[%clk 0:01:34.6]} 21. b4 {[%clk
0:01:34.7]} 21... Ng5 {[%clk 0:01:33.3]} 22. Bb3 {[%clk 0:01:30.7]} 22... Qxh3+
{[%clk 0:01:31.2]} 23. Kg1 {[%clk 0:01:29.3]} 23... Kh8 {[%clk 0:01:21.3]} 24.
Re1 {[%clk 0:00:54.3]} 24... Qf5 {[%clk 0:01:04.8]} 25. Qe2 {[%clk 0:00:48.7]}
25... Nh3+ {[%clk 0:00:59.1]} 26. Kg2 {[%clk 0:00:42.5]} 26... Nxf2 {[%clk
0:00:57.9]} 27. Rh1 {[%clk 0:00:36.4]} 27... Qxd3 {[%clk 0:00:42.8]} 28. Qh5
{[%clk 0:00:32.2]} 28... h6 {[%clk 0:00:36.3]} 29. Rad1 {[%clk 0:00:24.4]} 29...
Nxd1 {[%clk 0:00:24.9]} 30. Rxd1 {[%clk 0:00:21.6]} 30... Rf6 {[%clk 0:00:21.3]}
31. Nf3 {[%clk 0:00:18.9]} 31... Qe2+ {[%clk 0:00:19.3]} 32. Kh3 {[%clk
0:00:15.4]} 32... Qxf3 {[%clk 0:00:19.1]} 0-1

[Event "Betsys MČR v online bleskovém šachu 2021"]
[Site "Chess.com"]
[Date "2021.04.17"]
[Round "3"]
[White "Tolja1"]
[Black "jonvon640"]
[Result "1-0"]
[WhiteElo "2033"]
[BlackElo "1672"]
[TimeControl "180+1"]
[EndTime "9:26:49 PDT"]
[Termination "Uživatel Tolja1 zvítězil na čas"]

1. Nf3 {[%clk 0:03:00.9]} 1... d5 {[%clk 0:02:57.9]} 2. c4 {[%clk 0:03:00.4]}
2... e6 {[%clk 0:02:57.5]} 3. g3 {[%clk 0:02:59.5]} 3... c6 {[%clk 0:02:56]} 4.
Bg2 {[%clk 0:02:57.4]} 4... f5 {[%clk 0:02:55.7]} 5. d3 {[%clk 0:02:55.3]} 5...
Nf6 {[%clk 0:02:56]} 6. O-O {[%clk 0:02:55]} 6... Bd6 {[%clk 0:02:55.3]} 7. b3
{[%clk 0:02:51.8]} 7... Qc7 {[%clk 0:02:43.3]} 8. Ba3 {[%clk 0:02:45.8]} 8...
Bxa3 {[%clk 0:02:39]} 9. Nxa3 {[%clk 0:02:45.1]} 9... O-O {[%clk 0:02:39.4]} 10.
Nb1 {[%clk 0:02:43.5]} 10... e5 {[%clk 0:02:38.7]} 11. cxd5 {[%clk 0:02:38]}
11... cxd5 {[%clk 0:02:37.8]} 12. Nbd2 {[%clk 0:02:37.7]} 12... Nc6 {[%clk
0:02:34.8]} 13. Rc1 {[%clk 0:02:36.5]} 13... Qd6 {[%clk 0:02:31.6]} 14. Qc2
{[%clk 0:02:34.9]} 14... Be6 {[%clk 0:02:27.2]} 15. Qb2 {[%clk 0:02:18.2]} 15...
e4 {[%clk 0:02:23.5]} 16. Nd4 {[%clk 0:02:01.8]} 16... Qe5 {[%clk 0:02:17.1]}
17. e3 {[%clk 0:01:47.3]} 17... Nb4 {[%clk 0:01:55.8]} 18. dxe4 {[%clk
0:01:07.7]} 18... Nd3 {[%clk 0:01:43.1]} 19. Qa3 {[%clk 0:01:05]} 19... Nxc1
{[%clk 0:01:35.9]} 20. Rxc1 {[%clk 0:01:03]} 20... dxe4 {[%clk 0:01:34.1]} 21.
Nc4 {[%clk 0:00:58.8]} 21... Bxc4 {[%clk 0:01:29.8]} 22. Rxc4 {[%clk 0:00:58.1]}
22... Rfc8 {[%clk 0:01:07.8]} 23. Qc1 {[%clk 0:00:57.1]} 23... Rxc4 {[%clk
0:01:01.6]} 24. Qxc4+ {[%clk 0:00:56.9]} 24... Kf8 {[%clk 0:00:51]} 25. Ne6+
{[%clk 0:00:55]} 25... Ke7 {[%clk 0:00:45.1]} 26. Nd4 {[%clk 0:00:50.6]} 26...
Rd8 {[%clk 0:00:33.6]} 27. Qb4+ {[%clk 0:00:48.4]} 27... Kf7 {[%clk 0:00:21.7]}
28. Qxb7+ {[%clk 0:00:47.5]} 28... Rd7 {[%clk 0:00:19.4]} 29. Qb4 {[%clk
0:00:44.3]} 29... Rc7 {[%clk 0:00:17.8]} 30. h3 {[%clk 0:00:42.4]} 30... Qc5
{[%clk 0:00:13.9]} 31. Qb8 {[%clk 0:00:40.3]} 31... Nd5 {[%clk 0:00:07]} 32. Qd8
{[%clk 0:00:36.4]} 32... Qc1+ {[%clk 0:00:04.9]} 33. Kh2 {[%clk 0:00:35.9]}
33... Qc5 {[%clk 0:00:02.5]} 34. Nxf5 {[%clk 0:00:34.9]} 1-0

[Event "Betsys MČR v online bleskovém šachu 2021"]
[Site "Chess.com"]
[Date "2021.04.17"]
[Round "3"]
[White "JosefBara"]
[Black "Simaril76"]
[Result "1-0"]
[WhiteElo "1289"]
[BlackElo "707"]
[TimeControl "180+1"]
[EndTime "9:26:49 PDT"]
[Termination "Uživatel JosefBara zvítězil na čas"]

1. d4 {[%clk 0:03:00.9]} 1... c5 {[%clk 0:02:57.7]} 2. d5 {[%clk 0:02:59.7]}
2... d6 {[%clk 0:02:55.6]} 3. c4 {[%clk 0:03:00]} 3... Nf6 {[%clk 0:02:54.1]} 4.
Nc3 {[%clk 0:02:59.8]} 4... g6 {[%clk 0:02:54.1]} 5. Nf3 {[%clk 0:02:59.7]} 5...
Bg7 {[%clk 0:02:53.7]} 6. Bg5 {[%clk 0:02:59.7]} 6... O-O {[%clk 0:02:50.1]} 7.
Rc1 {[%clk 0:02:59.2]} 7... b6 {[%clk 0:02:48.9]} 8. e3 {[%clk 0:02:56.9]} 8...
Nbd7 {[%clk 0:02:48.4]} 9. g3 {[%clk 0:02:55.6]} 9... Ne5 {[%clk 0:02:45.2]} 10.
Nxe5 {[%clk 0:02:54.2]} 10... dxe5 {[%clk 0:02:44.5]} 11. Bg2 {[%clk 0:02:53.4]}
11... Bb7 {[%clk 0:02:40.9]} 12. O-O {[%clk 0:02:50.4]} 12... Ba6 {[%clk
0:02:30.9]} 13. b3 {[%clk 0:02:48.5]} 13... Bb7 {[%clk 0:02:26]} 14. Bxf6 {[%clk
0:02:47.8]} 14... Bxf6 {[%clk 0:02:23.1]} 15. Ne4 {[%clk 0:02:48.1]} 15... Bg7
{[%clk 0:02:22.5]} 16. Ng5 {[%clk 0:02:36.4]} 16... e6 {[%clk 0:02:11.9]} 17.
dxe6 {[%clk 0:02:19.3]} 17... Qxd1 {[%clk 0:02:09.7]} 18. Rcxd1 {[%clk
0:02:17.9]} 18... Bxg2 {[%clk 0:02:06.2]} 19. Kxg2 {[%clk 0:02:16.8]} 19... f6
{[%clk 0:02:01.1]} 20. e7 {[%clk 0:02:11]} 20... Rfe8 {[%clk 0:01:58.2]} 21. Nf3
{[%clk 0:01:59.2]} 21... Rxe7 {[%clk 0:01:57.2]} 22. Rd2 {[%clk 0:01:58.3]}
22... Ree8 {[%clk 0:01:53.2]} 23. Rfd1 {[%clk 0:01:58]} 23... f5 {[%clk
0:01:43.5]} 24. Rd7 {[%clk 0:01:53.8]} 24... Bf6 {[%clk 0:01:36.2]} 25. Rc7
{[%clk 0:01:45.5]} 25... Red8 {[%clk 0:01:33.8]} 26. Rdd7 {[%clk 0:01:38.8]}
26... Rxd7 {[%clk 0:01:27.2]} 27. Rxd7 {[%clk 0:01:38.3]} 27... Rd8 {[%clk
0:01:25]} 28. Rxa7 {[%clk 0:01:35.5]} 28... Rd6 {[%clk 0:01:06.4]} 29. Rb7
{[%clk 0:01:33.5]} 29... e4 {[%clk 0:01:05.2]} 30. Ne1 {[%clk 0:01:30.7]} 30...
Bc3 {[%clk 0:00:58.2]} 31. Nc2 {[%clk 0:01:24.1]} 31... Rd2 {[%clk 0:00:53.1]}
32. Na3 {[%clk 0:01:20.3]} 32... Rxa2 {[%clk 0:00:46.4]} 33. Nb5 {[%clk
0:01:20.1]} 33... Ra6 {[%clk 0:00:35]} 34. Nxc3 {[%clk 0:01:18.3]} 34... Ra3
{[%clk 0:00:27.8]} 35. Rxb6 {[%clk 0:01:16.5]} 35... Kf7 {[%clk 0:00:25.9]} 36.
Nd5 {[%clk 0:01:12.3]} 36... Ra5 {[%clk 0:00:17.7]} 37. Rb7+ {[%clk 0:01:11]}
37... Ke6 {[%clk 0:00:15.8]} 38. Rxh7 {[%clk 0:01:10]} 38... Kd6 {[%clk
0:00:12.8]} 39. Rh6 {[%clk 0:01:08.7]} 39... Ke5 {[%clk 0:00:12.2]} 40. Rxg6
{[%clk 0:01:07.4]} 40... Ra3 {[%clk 0:00:11.8]} 41. Rb6 {[%clk 0:01:05.6]} 41...
Ra2 {[%clk 0:00:11.1]} 42. h4 {[%clk 0:01:04.7]} 42... Ra3 {[%clk 0:00:03.5]}
43. h5 {[%clk 0:01:04.5]} 43... Ra2 {[%clk 0:00:03]} 44. h6 {[%clk 0:01:04.6]}
44... Re2 {[%clk 0:00:01.8]} 45. h7 {[%clk 0:01:04.4]} 45... f4 {[%clk
0:00:01.1]} 46. gxf4+ {[%clk 0:01:03.5]} 1-0

[Event "Betsys MČR v online bleskovém šachu 2021"]
[Site "Chess.com"]
[Date "2021.04.17"]
[Round "3"]
[White "AlenaSouralova"]
[Black "vaclavbelaska"]
[Result "0-1"]
[WhiteElo "912"]
[BlackElo "1405"]
[TimeControl "180+1"]
[EndTime "9:26:52 PDT"]
[Termination "Uživatel vaclavbelaska zvítězil na čas"]

1. e4 {[%clk 0:02:57.5]} 1... c5 {[%clk 0:02:52.6]} 2. Bc4 {[%clk 0:02:54.9]}
2... Nc6 {[%clk 0:02:41.4]} 3. Nf3 {[%clk 0:02:51.4]} 3... d6 {[%clk 0:02:39.7]}
4. Nc3 {[%clk 0:02:48.7]} 4... Nf6 {[%clk 0:02:38.5]} 5. d3 {[%clk 0:02:47]}
5... g6 {[%clk 0:02:35.4]} 6. Be3 {[%clk 0:02:45.4]} 6... Bg7 {[%clk 0:02:33.7]}
7. Qd2 {[%clk 0:02:44.6]} 7... Ng4 {[%clk 0:02:30.1]} 8. Bg5 {[%clk 0:02:23]}
8... O-O {[%clk 0:02:17.8]} 9. O-O-O {[%clk 0:02:19.9]} 9... h6 {[%clk 0:02:14]}
10. Bf4 {[%clk 0:02:11]} 10... e5 {[%clk 0:02:07]} 11. Be3 {[%clk 0:02:10.4]}
11... Nxe3 {[%clk 0:02:05.6]} 12. Qxe3 {[%clk 0:02:10.6]} 12... Kh7 {[%clk
0:02:03.2]} 13. h4 {[%clk 0:02:04.4]} 13... h5 {[%clk 0:02:01.4]} 14. Rdg1
{[%clk 0:02:01]} 14... Bh6 {[%clk 0:01:59.1]} 15. Qxh6+ {[%clk 0:01:32.2]} 15...
Kxh6 {[%clk 0:01:57]} 16. g4 {[%clk 0:01:30.3]} 16... Bxg4 {[%clk 0:01:54.9]}
17. Ng5 {[%clk 0:01:28.3]} 17... Qe7 {[%clk 0:01:40.2]} 18. f3 {[%clk
0:01:18.2]} 18... Be6 {[%clk 0:01:38]} 19. Kb1 {[%clk 0:00:44.4]} 19... Bxc4
{[%clk 0:01:20.1]} 20. dxc4 {[%clk 0:00:40]} 20... Nd4 {[%clk 0:01:17.3]} 21.
Nd5 {[%clk 0:00:36.8]} 21... Qd8 {[%clk 0:01:06.6]} 22. b3 {[%clk 0:00:22.6]}
22... Ne6 {[%clk 0:01:02.8]} 23. Nxe6 {[%clk 0:00:20.1]} 23... fxe6 {[%clk
0:01:01.6]} 24. Ne3 {[%clk 0:00:16.1]} 24... Qf6 {[%clk 0:00:48]} 25. Rf1 {[%clk
0:00:11.2]} 25... Qf4 {[%clk 0:00:32.9]} 26. Ng2 {[%clk 0:00:08.9]} 26... Qg3
{[%clk 0:00:21.4]} 27. Rhg1 {[%clk 0:00:01.9]} 27... Qh3 {[%clk 0:00:16.2]} 0-1

[Event "Betsys MČR v online bleskovém šachu 2021"]
[Site "Chess.com"]
[Date "2021.04.17"]
[Round "3"]
[White "penguinorodriguez"]
[Black "TrickyPeat"]
[Result "1-0"]
[WhiteElo "2553"]
[BlackElo "2213"]
[TimeControl "180+1"]
[EndTime "9:26:54 PDT"]
[Termination "Uživatel penguinorodriguez zvítězil matem"]

1. d4 {[%clk 0:03:00.2]} 1... Nf6 {[%clk 0:02:57.1]} 2. c4 {[%clk 0:02:59.1]}
2... c5 {[%clk 0:02:57.1]} 3. d5 {[%clk 0:02:59.3]} 3... e5 {[%clk 0:02:57.2]}
4. Nc3 {[%clk 0:02:57.9]} 4... d6 {[%clk 0:02:57.1]} 5. e4 {[%clk 0:02:58.4]}
5... Be7 {[%clk 0:02:56.4]} 6. g3 {[%clk 0:02:58.9]} 6... a6 {[%clk 0:02:56]} 7.
a4 {[%clk 0:02:58.4]} 7... Nbd7 {[%clk 0:02:55.4]} 8. Bg2 {[%clk 0:02:57.3]}
8... Nf8 {[%clk 0:02:55.1]} 9. Nge2 {[%clk 0:02:56.9]} 9... Ng6 {[%clk
0:02:54.5]} 10. O-O {[%clk 0:02:56.1]} 10... h5 {[%clk 0:02:52]} 11. f4 {[%clk
0:02:54.6]} 11... exf4 {[%clk 0:02:45.9]} 12. gxf4 {[%clk 0:02:48.9]} 12... Nh4
{[%clk 0:02:43]} 13. Bh1 {[%clk 0:02:11.8]} 13... Bh3 {[%clk 0:02:40.2]} 14. Re1
{[%clk 0:02:09.8]} 14... Ng4 {[%clk 0:02:37.3]} 15. Qd3 {[%clk 0:02:01.1]} 15...
Nxh2 {[%clk 0:02:12.8]} 16. Qxh3 {[%clk 0:01:43.2]} 16... Ng4 {[%clk 0:02:08.8]}
17. Ng3 {[%clk 0:01:33.9]} 17... Bf6 {[%clk 0:02:04.7]} 18. e5 {[%clk
0:01:20.8]} 18... dxe5 {[%clk 0:02:00.3]} 19. fxe5 {[%clk 0:01:12.5]} 19... Bg5
{[%clk 0:01:59]} 20. Nce4 {[%clk 0:01:03.8]} 20... Bxc1 {[%clk 0:01:53.4]} 21.
Nd6+ {[%clk 0:00:59.3]} 21... Kf8 {[%clk 0:01:49.5]} 22. Raxc1 {[%clk
0:00:59.2]} 22... Rh6 {[%clk 0:01:36.5]} 23. Rf1 {[%clk 0:00:54.4]} 23... Nxe5
{[%clk 0:01:22.7]} 24. Ndf5 {[%clk 0:00:45]} 24... Nxf5 {[%clk 0:01:17.6]} 25.
Rxf5 {[%clk 0:00:45.9]} 25... Nd3 {[%clk 0:01:06.1]} 26. Rcf1 {[%clk 0:00:43.5]}
26... f6 {[%clk 0:01:05.1]} 27. Rxh5 {[%clk 0:00:38.5]} 27... Rxh5 {[%clk
0:00:44.3]} 28. Qxh5 {[%clk 0:00:39.4]} 28... Kg8 {[%clk 0:00:37.2]} 29. Be4
{[%clk 0:00:32.3]} 29... Qd6 {[%clk 0:00:32]} 30. Qh7+ {[%clk 0:00:18.1]} 30...
Kf8 {[%clk 0:00:28.2]} 31. Nf5 {[%clk 0:00:18.4]} 31... Qd7 {[%clk 0:00:16.8]}
32. Qh8+ {[%clk 0:00:17.2]} 32... Kf7 {[%clk 0:00:15.3]} 33. Qxg7+ {[%clk
0:00:17.8]} 33... Ke8 {[%clk 0:00:12.5]} 34. Qg8# {[%clk 0:00:18.4]} 1-0